fUST/lending_fUST_20250925
["ID","MTS","AMOUNT","RATE_DAILY","PERIOD"]
[387677149,1758805848773,-151.0,0.00024619,7]
[387677151,1758805848783,-151.0,0.00024619,7]
[387677153,1758805848793,-151.0,0.00024619,7]
[387677156,1758805848807,-316.98,0.00024674,2]
[387677158,1758805848817,-175.07996479,0.00024716,2]
[387677159,1758805848827,-168.0,0.00024737,2]
[387677162,1758805848837,-168.0,0.00024757,2]
[387677163,1758805848848,-469.62195084,0.000248,2]
[387677166,1758805848858,-3287.0,0.00024813,2]
[387677168,1758805848868,-492.08,0.00024815,2]
[387677169,1758805848883,-1958.22,0.00024816,2]
[387677171,1758805848895,-500.7,0.00024816,2]
[387677173,1758805848906,-507.65796114,0.00024873,2]
[387677175,1758805848916,-151.0,0.000249,7]
[387677178,1758805848927,-151.0,0.000249,7]
[387677180,1758805848937,-151.0,0.000249,7]
[387677182,1758805848947,-151.0,0.000249,7]
[387677184,1758805848957,-151.0,0.000249,7]
[387677186,1758805848968,-151.0,0.000249,7]
[387677188,1758805848978,-151.50583,0.000249,7]
[387677190,1758805848988,-151.0,0.000249,7]
[387677191,1758805848997,-151.0,0.000249,7]
[387677194,1758805849007,-151.0,0.000249,7]
[387677195,1758805849017,-151.0,0.000249,7]
[387677198,1758805849028,-157.924132,0.000249,7]
[387677199,1758805849038,-183.893134,0.000249,7]
[387677202,1758805849054,-183.893134,0.000249,7]
[387677203,1758805849063,-183.893134,0.000249,7]
[387677211,1758805849131,-183.893134,0.000249,7]
[387677213,1758805849142,-151.155431,0.000249,7]
[387677215,1758805849152,-151.155431,0.000249,7]
[387677217,1758805849163,-151.155431,0.000249,7]
[387677219,1758805849174,-151.155431,0.000249,7]
[387677221,1758805849185,-151.0,0.000249,7]
[387677223,1758805849195,-151.0,0.000249,7]
[387677225,1758805849205,-151.0,0.000249,7]
[387677227,1758805849214,-161.727073,0.000249,7]
[387677229,1758805849225,-161.727073,0.000249,7]
[387677231,1758805849234,-151.0,0.000249,7]
[387677233,1758805849244,-161.727073,0.000249,7]
[387677235,1758805849254,-151.0,0.000249,7]
[387677237,1758805849263,-161.727073,0.000249,7]
[387677239,1758805849273,-151.0,0.000249,7]
[387677241,1758805849282,-151.0,0.000249,7]
[387677243,1758805849292,-151.0,0.000249,7]
[387677246,1758805849303,-151.0,0.000249,7]
[387677248,1758805849312,-151.0,0.000249,7]
[387677250,1758805849321,-151.0,0.000249,7]
[387677252,1758805849330,-211.616309,0.000249,7]
[387677254,1758805849339,-151.0,0.000249,7]
[387677256,1758805849349,-151.0,0.000249,7]
[387677258,1758805849358,-151.0,0.000249,7]
[387677260,1758805849368,-151.0,0.000249,7]
[387677262,1758805849381,-151.0,0.000249,7]
[387677264,1758805849390,-151.0,0.000249,7]
[387677266,1758805849399,-151.0,0.000249,7]
[387677268,1758805849408,-151.0,0.000249,7]
[387677270,1758805849417,-151.0,0.000249,7]
[387677272,1758805849427,-354.437511,0.000249,7]
[387677274,1758805849435,-151.0,0.000249,7]
[387677276,1758805849444,-354.437511,0.000249,7]
[387677278,1758805849453,-354.437511,0.000249,7]
[387677280,1758805849462,-354.437511,0.000249,7]
[387677282,1758805849472,-151.0,0.000249,7]
[387677284,1758805849482,-151.0,0.000249,7]
[387677286,1758805849490,-151.0,0.000249,7]
[387677288,1758805849499,-151.0,0.000249,7]
[387677290,1758805849508,-151.0,0.000249,7]
[387677292,1758805849517,-151.0,0.000249,7]
[387677294,1758805849526,-151.0,0.000249,7]
[387677296,1758805849535,-151.0,0.000249,7]
[387677298,1758805849545,-151.0,0.000249,7]
[387677300,1758805849555,-151.0,0.000249,7]
[387677302,1758805849564,-151.0,0.000249,7]
[387677304,1758805849574,-160.0,0.000249,7]
[387677306,1758805849583,-151.0,0.000249,7]
[387677308,1758805849592,-151.0,0.000249,7]
[387677309,1758805849602,-151.0,0.000249,7]
[387677310,1758805849611,-273.041093,0.000249,7]
[387677312,1758805849621,-151.0,0.000249,7]
[387677314,1758805849630,-240.925123,0.000249,7]
[387677316,1758805849639,-151.0,0.000249,7]
[387677318,1758805849648,-151.0,0.000249,7]
[387677319,1758805849658,-151.0,0.000249,7]
[387677321,1758805849667,-169.087212,0.000249,7]
[387677323,1758805849676,-166.184264,0.000249,7]
[387677325,1758805849686,-166.184264,0.000249,7]
[387677327,1758805849696,-166.184264,0.000249,7]
[387677329,1758805849706,-166.184264,0.000249,7]
[387677330,1758805849716,-151.0,0.000249,7]
[387677331,1758805849726,-151.0,0.000249,7]
[387677333,1758805849736,-151.0,0.000249,7]
[387677334,1758805849745,-248.923396,0.000249,7]
[387677335,1758805849755,-507.585346,0.000249,7]
[387677336,1758805849765,-151.0,0.000249,7]
[387677337,1758805849775,-507.585346,0.000249,7]
[387677338,1758805849786,-507.585346,0.000249,7]
[387677339,1758805849795,-507.585346,0.000249,7]
[387677340,1758805849806,-151.0,0.000249,7]
[387677341,1758805849815,-667.584204,0.000249,7]
[387677342,1758805849825,-667.584204,0.000249,7]
[387677343,1758805849835,-667.584204,0.000249,7]
[387677344,1758805849845,-667.584204,0.000249,7]
[387677345,1758805849855,-151.0,0.000249,7]
[387677346,1758805849864,-151.0,0.000249,7]
[387677347,1758805849875,-189.486291,0.000249,7]
[387677348,1758805849886,-151.0,0.000249,7]
[387677349,1758805849896,-292219.425785,0.000249,2]
[387677350,1758805849905,-151.0,0.000249,7]
[387677351,1758805849914,-151.0,0.000249,7]
[387677352,1758805849924,-151.0,0.000249,7]
[387677353,1758805849933,-151.0,0.000249,7]
[387677354,1758805849942,-151.0,0.000249,7]
[387677355,1758805849953,-151.0,0.000249,7]
[387677356,1758805849962,-151.0,0.000249,7]
[387677357,1758805849972,-260.402341,0.000249,7]
[387677358,1758805849982,-151.0,0.000249,7]
[387677359,1758805849991,-495.772711,0.000249,7]
[387677360,1758805850000,-495.772711,0.000249,7]
[387677361,1758805850011,-495.772711,0.000249,7]
[387677362,1758805850021,-495.772711,0.000249,7]
[387677363,1758805850030,-151.0,0.000249,7]
[387677364,1758805850040,-151.0,0.000249,7]
[387677365,1758805850051,-345.972394,0.000249,7]
[387677366,1758805850060,-345.972394,0.000249,7]
[387677367,1758805850070,-151.0,0.000249,7]
[387677368,1758805850080,-151.0,0.000249,7]
[387677369,1758805850089,-151.0,0.000249,7]
[387677370,1758805850099,-345.972394,0.000249,7]
[387677371,1758805850109,-151.0,0.000249,7]
[387677372,1758805850118,-345.972394,0.000249,7]
[387677373,1758805850187,-151.0,0.000249,7]
[387677374,1758805850198,-151.0,0.000249,7]
[387677375,1758805850207,-151.0,0.000249,7]
[387677376,1758805850217,-151.0,0.000249,7]
[387677377,1758805850227,-151.0,0.000249,7]
[387677378,1758805850238,-151.0,0.000249,7]
[387677379,1758805850247,-151.0,0.000249,7]
[387677380,1758805850258,-151.0,0.000249,7]
[387677381,1758805850268,-151.0,0.000249,7]
[387677382,1758805850278,-270.553795,0.000249,7]
[387677383,1758805850288,-151.0,0.000249,7]
[387677384,1758805850298,-151.0,0.000249,7]
[387677385,1758805850310,-151.0,0.000249,7]
[387677386,1758805850321,-151.0,0.000249,7]
[387677387,1758805850331,-151.0,0.000249,7]
[387677388,1758805850341,-151.0,0.000249,7]
[387677389,1758805850351,-151.0,0.000249,7]
[387677390,1758805850361,-151.0,0.000249,7]
[387677391,1758805850371,-151.0,0.000249,7]
[387677392,1758805850381,-168.0,0.00024948,2]
[387677393,1758805850390,-168.0,0.00024975,2]
[387677394,1758805850400,-417.15472785,0.00025,10]
[387677395,1758805850411,-823.0,0.0002501,2]
[387677396,1758805850421,-168.0,0.0002507,2]
[387677398,1758805850431,-492.08,0.00025089,2]
[387677399,1758805850442,-1958.22,0.0002509,2]
[387677400,1758805850452,-500.7,0.0002509,2]
[387677401,1758805850462,-978.0,0.00025114,2]
[387677402,1758805850472,-2160.0,0.00025114,2]
[387677403,1758805850482,-635.0,0.00025114,2]
[387677404,1758805850492,-417.975,0.00025114,2]
[387677405,1758805850502,-900.66,0.00025205,4]
[387677407,1758805850511,-545.26291743,0.00025219,2]
[387677409,1758805850520,-3287.0,0.00025236,2]
[387677411,1758805850531,-1100.0,0.00025248,2]
[387677413,1758805850540,-168.0,0.00025248,2]
[387677414,1758805850550,-168.0,0.00025289,2]
[387677416,1758805850563,-168.0,0.00025299,2]
[387677418,1758805850572,-8824.13425562,0.00025316,2]
[387677420,1758805850582,-168.0,0.00025318,2]
[387677422,1758805850591,-168.0,0.0002532,2]
[387677423,1758805850600,-179.64071856,0.00025334,2]
[387677425,1758805850610,-1134.13512088,0.0002534,2]
[387677426,1758805850620,-492.08,0.00025363,2]
[387677427,1758805850629,-1958.22,0.00025364,2]
[387677428,1758805850638,-500.7,0.00025364,2]
[387677429,1758805850647,-168.0,0.00025437,2]
[387677430,1758805850657,-278.78892097,0.0002544,2]
[387677431,1758805850667,-1000000.0,0.0002544,2]
[387677432,1758805850676,-282.914736,0.0002544,7]
[387677433,1758805850686,-151.0,0.0002544,7]
[387677434,1758805850696,-151.0,0.0002544,7]
[387677435,1758805850705,-151.0,0.0002544,7]
[387677436,1758805850714,-151.0,0.0002544,7]
[387677437,1758805850723,-151.0,0.0002544,7]
[387677438,1758805850733,-151.0,0.0002544,7]
[387677439,1758805850742,-151.0,0.0002544,7]
[387677440,1758805850752,-151.0,0.0002544,7]
[387677441,1758805850761,-151.0,0.0002544,7]
[387677442,1758805850771,-151.0,0.0002544,7]
[387677443,1758805850780,-151.0,0.0002544,7]
[387677444,1758805850789,-151.0,0.0002544,7]
[387677445,1758805850799,-151.0,0.0002544,7]
[387677446,1758805850810,-151.0,0.0002544,7]
[387677447,1758805850820,-160.87715,0.0002544,7]
[387677448,1758805850829,-151.0,0.0002544,7]
[387677449,1758805850838,-151.011794,0.0002544,7]
[387677450,1758805850848,-151.0,0.0002544,7]
[387677451,1758805850857,-151.0,0.0002544,7]
[387677452,1758805850867,-151.0,0.0002544,7]
[387677453,1758805850879,-151.0,0.0002544,7]
[387677454,1758805850889,-151.0,0.0002544,7]
[387677455,1758805850898,-151.0,0.0002544,7]
[387677456,1758805850908,-183.893134,0.0002544,7]
[387677457,1758805850919,-183.893134,0.0002544,7]
[387677458,1758805850928,-183.893134,0.0002544,7]
[387677459,1758805850938,-183.893134,0.0002544,7]
[387677460,1758805850948,-151.155431,0.0002544,7]
[387677461,1758805850960,-151.155431,0.0002544,7]
[387677462,1758805850970,-151.155431,0.0002544,7]
[387677463,1758805850979,-151.155431,0.0002544,7]
[387677464,1758805850989,-151.0,0.0002544,7]
[387677465,1758805850999,-151.0,0.0002544,7]
[387677466,1758805851008,-151.0,0.0002544,7]
[387677467,1758805851017,-161.727073,0.0002544,7]
[387677468,1758805851026,-161.727073,0.0002544,7]
[387677469,1758805851036,-161.727073,0.0002544,7]
[387677470,1758805851046,-161.727073,0.0002544,7]
[387677471,1758805851058,-151.0,0.0002544,7]
[387677472,1758805851068,-151.0,0.0002544,7]
[387677473,1758805851077,-151.0,0.0002544,7]
[387677474,1758805851086,-151.0,0.0002544,7]
[387677475,1758805851095,-151.0,0.0002544,7]
[387677476,1758805851105,-151.0,0.0002544,7]
[387677477,1758805851114,-151.0,0.0002544,7]
[387677478,1758805851175,-151.0,0.0002544,7]
[387677479,1758805851184,-151.0,0.0002544,7]
[387677480,1758805851194,-151.0,0.0002544,7]
[387677481,1758805851203,-151.0,0.0002544,7]
[387677482,1758805851212,-151.0,0.0002544,7]
[387677483,1758805851221,-294.359205,0.0002544,7]
[387677484,1758805851230,-151.0,0.0002544,7]
[387677485,1758805851240,-151.0,0.0002544,7]
[387677486,1758805851249,-354.437511,0.0002544,7]
[387677487,1758805851258,-151.0,0.0002544,7]
[387677488,1758805851268,-354.437511,0.0002544,7]
[387677489,1758805851277,-354.437511,0.0002544,7]
[387677490,1758805851287,-354.437511,0.0002544,7]
[387677491,1758805851296,-151.0,0.0002544,7]
[387677492,1758805851307,-151.0,0.0002544,7]
[387677493,1758805851315,-151.0,0.0002544,7]
[387677494,1758805851325,-151.0,0.0002544,7]
[387677495,1758805851334,-151.0,0.0002544,7]
[387677496,1758805851343,-151.0,0.0002544,7]
[387677497,1758805851353,-151.0,0.0002544,7]
[387677498,1758805851361,-151.0,0.0002544,7]
[387677499,1758805851371,-297.339303,0.0002544,7]
[387677500,1758805851380,-151.0,0.0002544,7]
[387677501,1758805851389,-151.0,0.0002544,7]
[387677502,1758805851399,-151.0,0.0002544,7]
[387677503,1758805851408,-151.0,0.0002544,7]
[387677504,1758805851418,-151.0,0.0002544,7]
[387677505,1758805851427,-151.0,0.0002544,7]
[387677506,1758805851436,-151.0,0.0002544,7]
[387677507,1758805851445,-166.184264,0.0002544,7]
[387677508,1758805851455,-166.184264,0.0002544,7]
[387677509,1758805851464,-166.184264,0.0002544,7]
[387677510,1758805851474,-166.184264,0.0002544,7]
[387677511,1758805851483,-151.0,0.0002544,7]
[387677512,1758805851492,-151.0,0.0002544,7]
[387677513,1758805851501,-151.0,0.0002544,7]
[387677514,1758805851510,-507.585346,0.0002544,7]
[387677515,1758805851520,-151.0,0.0002544,7]
[387677516,1758805851529,-507.585346,0.0002544,7]
[387677517,1758805851538,-507.585346,0.0002544,7]
[387677518,1758805851548,-507.585346,0.0002544,7]
[387677519,1758805851560,-151.0,0.0002544,7]
[387677520,1758805851569,-667.584204,0.0002544,7]
[387677521,1758805851579,-667.584204,0.0002544,7]
[387677522,1758805851593,-667.584204,0.0002544,7]
[387677523,1758805851615,-667.584204,0.0002544,7]
[387677524,1758805851633,-151.0,0.0002544,7]
[387677525,1758805851653,-151.0,0.0002544,7]
[387677526,1758805851674,-151.0,0.0002544,7]
[387677527,1758805851690,-268.99134,0.0002544,7]
[387677528,1758805851708,-151.0,0.0002544,7]
[387677529,1758805851724,-151.0,0.0002544,7]
[387677530,1758805851739,-151.0,0.0002544,7]
[387677531,1758805851760,-151.0,0.0002544,7]
[387677532,1758805851780,-151.0,0.0002544,7]
[387677533,1758805851796,-162.735279,0.0002544,7]
[387677534,1758805851813,-151.0,0.0002544,7]
[387677535,1758805851831,-495.772711,0.0002544,7]
[387677536,1758805851845,-495.772711,0.0002544,7]
[387677537,1758805851862,-495.772711,0.0002544,7]
[387677538,1758805851877,-495.772711,0.0002544,7]
[387677539,1758805851892,-157.452814,0.0002544,7]
[387677540,1758805851906,-151.0,0.0002544,7]
[387677541,1758805851920,-345.972394,0.0002544,7]
[387677542,1758805851935,-345.972394,0.0002544,7]
[387677543,1758805851950,-151.0,0.0002544,7]
[387677544,1758805851965,-151.0,0.0002544,7]
[387677545,1758805851980,-345.972394,0.0002544,7]
[387677546,1758805851994,-151.0,0.0002544,7]
[387677547,1758805852009,-345.972394,0.0002544,7]
[387677548,1758805852023,-151.0,0.0002544,7]
[387677549,1758805852037,-151.0,0.0002544,7]
[387677550,1758805852054,-201.345444,0.0002544,7]
[387677551,1758805852069,-151.0,0.0002544,7]
[387677552,1758805852084,-151.0,0.0002544,7]
[387677553,1758805852099,-151.0,0.0002544,7]
[387677554,1758805852113,-151.0,0.0002544,7]
[387677555,1758805852128,-151.0,0.0002544,7]
[387677556,1758805852143,-151.0,0.0002544,7]
[387677557,1758805852157,-151.0,0.0002544,7]
[387677558,1758805852171,-151.0,0.0002544,7]
[387677559,1758805852186,-151.0,0.0002544,7]
[387677560,1758805852200,-151.0,0.0002544,7]
[387677561,1758805852214,-151.0,0.0002544,7]
[387677562,1758805852229,-151.0,0.0002544,7]
[387677563,1758805852244,-151.0,0.0002544,7]
[387677564,1758805852254,-151.0,0.0002544,7]
[387677565,1758805852353,-168.0,0.00025499,2]
[387677566,1758805852367,-417.15472785,0.000255,7]
[387677567,1758805852377,-1000.0,0.000255,2]
[387677568,1758805852387,-168.0,0.00025504,2]
[387677569,1758805852396,-192.93927548,0.00025586,2]
[387677570,1758805852405,-3918.8233203,0.00025595,2]
[387677571,1758805852415,-27186.99124,0.00025595,2]
[387677572,1758805852424,-168.0,0.000256,2]
[387677573,1758805852434,-650.0,0.000256,2]
[387677574,1758805852443,-369.81,0.00025623,2]
[387677575,1758805852453,-492.24055159,0.00025636,2]
[387677576,1758805852463,-1958.30904868,0.00025638,2]
[387677577,1758805852472,-500.7,0.00025638,2]
[387677578,1758805852482,-9166.0,0.00025756,2]
[387677579,1758805852492,-500.0,0.000258,2]
[387677580,1758805852502,-230.0,0.00025849,2]
[387677581,1758805852512,-227.049,0.00025924,2]
[387677582,1758805852521,-250.0,0.00025924,2]
[387677583,1758805852530,-262.936,0.00025924,2]
[387677584,1758805852540,-292.671,0.00025924,2]
[387677585,1758805852550,-151.0,0.00025996,2]
[387677586,1758805852559,-246.33756732,0.00025996,2]
[387677587,1758805852569,-151.0,0.00025996,2]
[387677588,1758805852578,-151.0,0.00025996,2]
[387677589,1758805852587,-198.87602421,0.00025996,2]
[387677590,1758805852597,-151.0,0.00025996,2]
[387677591,1758805852607,-500.0,0.00025996,2]
[387677592,1758805852616,-151.0,0.00025996,2]
[387677593,1758805852626,-151.0,0.00025996,2]
[387677594,1758805852636,-155.81474067,0.00025996,2]
[387677595,1758805852645,-152.22216253,0.00025996,2]
[387677596,1758805852655,-151.0,0.00025996,2]
[387677597,1758805852665,-151.0,0.00025996,2]
[387677598,1758805852675,-151.0,0.00025996,2]
[387677599,1758805852685,-151.0,0.00025996,2]
[387677600,1758805852694,-151.0,0.00025996,2]
[387677601,1758805852703,-151.0,0.00025996,2]
[387677602,1758805852713,-500.0,0.00025996,2]
[387677603,1758805852722,-151.0,0.00025996,2]
[387677604,1758805852732,-151.0,0.00025996,2]
[387677605,1758805852742,-151.0,0.00025996,2]
[387677606,1758805852751,-151.0,0.00025996,2]
[387677607,1758805852760,-151.0,0.00025996,2]
[387677608,1758805852770,-143.63842666,0.00026,2]
[387677609,1758805852779,-1500.0,0.00026,2]
[387677610,1758805852788,-1010.76760519,0.00026,5]
[387677611,1758805852797,-1000.0,0.00026,2]
[387677612,1758805852807,-250.0,0.00026,10]
[387677613,1758805852816,-250.0,0.000261,10]
[387677614,1758805852824,-377.847015,0.000262,10]
[387677615,1758805852833,-230.0,0.00026214,2]
[387677616,1758805852842,-246.90162727,0.0002627,2]
[387677617,1758805852852,-247.14406961,0.0002627,2]
[387677618,1758805852861,-199.43614688,0.0002627,2]
[387677619,1758805852871,-500.0,0.0002627,2]
[387677620,1758805852884,-151.0,0.0002627,2]
[387677621,1758805852893,-151.0,0.0002627,2]
[387677622,1758805852903,-151.0,0.0002627,2]
[387677623,1758805852912,-290.0,0.0002627,2]
[387677624,1758805852923,-500.0,0.0002627,2]
[387677625,1758805852932,-151.0,0.0002627,2]
[387677626,1758805852942,-151.0,0.0002627,2]
[387677627,1758805852952,-151.0,0.0002627,2]
[387677628,1758805852962,-151.59310519,0.0002627,2]
[387677629,1758805852971,-151.93961096,0.0002627,2]
[387677630,1758805852980,-1100.0,0.00026344,2]
[387677631,1758805852990,-500.0,0.00026348,2]
[387677632,1758805853000,-459259.0,0.00026444,2]
[387677633,1758805853009,-151.0,0.00026444,7]
[387677634,1758805853018,-151.0,0.00026444,7]
[387677635,1758805853028,-151.0,0.00026444,7]
[387677636,1758805853037,-208.940993,0.00026444,7]
[387677637,1758805853047,-151.0,0.00026444,7]
[387677638,1758805853057,-151.0,0.00026444,7]
[387677639,1758805853067,-151.0,0.00026444,7]
[387677640,1758805853076,-151.0,0.00026444,7]
[387677641,1758805853086,-151.0,0.00026444,7]
[387677642,1758805853095,-151.0,0.00026444,7]
[387677643,1758805853104,-151.0,0.00026444,7]
[387677644,1758805853113,-216.034431,0.00026444,7]
[387677645,1758805853123,-151.0,0.00026444,7]
[387677646,1758805853132,-151.0,0.00026444,7]
[387677647,1758805853141,-168.55612,0.00026444,7]
[387677648,1758805853151,-151.0,0.00026444,7]
[387677649,1758805853161,-151.0,0.00026444,7]
[387677650,1758805853175,-274.423945,0.00026444,7]
[387677651,1758805853184,-183.893134,0.00026444,7]
[387677652,1758805853194,-183.893134,0.00026444,7]
[387677653,1758805853206,-183.893134,0.00026444,7]
[387677654,1758805853215,-183.893134,0.00026444,7]
[387677655,1758805853225,-151.155431,0.00026444,7]
[387677656,1758805853234,-151.155431,0.00026444,7]
[387677657,1758805853244,-151.155431,0.00026444,7]
[387677658,1758805853254,-151.155431,0.00026444,7]
[387677659,1758805853263,-151.0,0.00026444,7]
[387677660,1758805853272,-151.0,0.00026444,7]
[387677661,1758805853281,-151.0,0.00026444,7]
[387677662,1758805853291,-161.727073,0.00026444,7]
[387677663,1758805853300,-161.727073,0.00026444,7]
[387677664,1758805853311,-161.727073,0.00026444,7]
[387677665,1758805853320,-161.727073,0.00026444,7]
[387677666,1758805853330,-151.0,0.00026444,7]
[387677667,1758805853339,-151.0,0.00026444,7]
[387677668,1758805853349,-151.0,0.00026444,7]
[387677669,1758805853357,-151.0,0.00026444,7]
[387677670,1758805853366,-151.0,0.00026444,7]
[387677671,1758805853376,-151.0,0.00026444,7]
[387677672,1758805853385,-151.0,0.00026444,7]
[387677673,1758805853395,-151.0,0.00026444,7]
[387677674,1758805853404,-151.0,0.00026444,7]
[387677675,1758805853414,-151.0,0.00026444,7]
[387677676,1758805853424,-151.0,0.00026444,7]
[387677677,1758805853433,-151.0,0.00026444,7]
[387677678,1758805853443,-151.0,0.00026444,7]
[387677679,1758805853452,-183.897256,0.00026444,7]
[387677680,1758805853461,-354.437511,0.00026444,7]
[387677681,1758805853471,-160.059737,0.00026444,7]
[387677682,1758805853481,-354.437511,0.00026444,7]
[387677683,1758805853491,-354.437511,0.00026444,7]
[387677684,1758805853500,-354.437511,0.00026444,7]
[387677685,1758805853510,-151.0,0.00026444,7]
[387677686,1758805853520,-151.0,0.00026444,7]
[387677687,1758805853529,-152.231449,0.00026444,7]
[387677688,1758805853539,-151.0,0.00026444,7]
[387677689,1758805853756,-151.0,0.00026444,7]
[387677690,1758805853766,-151.0,0.00026444,7]
[387677691,1758805853776,-151.0,0.00026444,7]
[387677692,1758805853786,-151.0,0.00026444,7]
[387677693,1758805853795,-151.0,0.00026444,7]
[387677694,1758805853806,-151.0,0.00026444,7]
[387677695,1758805853816,-151.0,0.00026444,7]
[387677696,1758805853825,-151.0,0.00026444,7]
[387677697,1758805853835,-151.0,0.00026444,7]
[387677698,1758805853844,-151.0,0.00026444,7]
[387677699,1758805853854,-166.184264,0.00026444,7]
[387677700,1758805853863,-166.184264,0.00026444,7]
[387677701,1758805853874,-166.184264,0.00026444,7]
[387677702,1758805853886,-166.184264,0.00026444,7]
[387677703,1758805853894,-151.0,0.00026444,7]
[387677704,1758805853903,-151.0,0.00026444,7]
[387677705,1758805853912,-151.0,0.00026444,7]
[387677706,1758805853920,-507.585346,0.00026444,7]
[387677707,1758805853985,-507.585346,0.00026444,7]
[387677708,1758805854007,-507.585346,0.00026444,7]
[387677709,1758805854016,-507.585346,0.00026444,7]
[387677710,1758805854026,-151.0,0.00026444,7]
[387677711,1758805854035,-667.584204,0.00026444,7]
[387677712,1758805854045,-667.584204,0.00026444,7]
[387677713,1758805854057,-667.584204,0.00026444,7]
[387677714,1758805854067,-667.584204,0.00026444,7]
[387677715,1758805854076,-151.0,0.00026444,7]
[387677716,1758805854086,-151.0,0.00026444,7]
[387677717,1758805854095,-151.0,0.00026444,7]
[387677718,1758805854106,-151.0,0.00026444,7]
[387677719,1758805854116,-151.0,0.00026444,7]
[387677720,1758805854126,-151.0,0.00026444,7]
[387677721,1758805854136,-153.083448,0.00026444,7]
[387677722,1758805854146,-495.772711,0.00026444,7]
[387677723,1758805854157,-495.772711,0.00026444,7]
[387677724,1758805854167,-495.772711,0.00026444,7]
[387677725,1758805854177,-495.772711,0.00026444,7]
[387677726,1758805854187,-151.0,0.00026444,7]
[387677727,1758805854197,-345.972394,0.00026444,7]
[387677728,1758805854207,-345.972394,0.00026444,7]
[387677729,1758805854218,-151.0,0.00026444,7]
[387677730,1758805854228,-151.0,0.00026444,7]
[387677731,1758805854237,-345.972394,0.00026444,7]
[387677732,1758805854248,-151.0,0.00026444,7]
[387677733,1758805854258,-345.972394,0.00026444,7]
[387677734,1758805854268,-301.1254954,0.00026444,7]
[387677735,1758805854278,-151.0,0.00026444,7]
[387677736,1758805854288,-151.0,0.00026444,7]
[387677737,1758805854298,-151.0,0.00026444,7]
[387677738,1758805854311,-151.0,0.00026444,7]
[387677739,1758805854320,-151.0,0.00026444,7]
[387677740,1758805854330,-151.0,0.00026444,7]
[387677741,1758805854340,-151.0,0.00026444,7]
[387677742,1758805854350,-151.0,0.00026444,7]
[387677743,1758805854360,-151.0,0.00026444,7]
[387677744,1758805854370,-151.0,0.00026444,7]
[387677745,1758805854380,-151.0,0.00026444,7]
[387677746,1758805854390,-151.0,0.00026444,7]
[387677747,1758805854400,-151.0,0.00026444,7]
[387677748,1758805854410,-160.0,0.000265,7]
[387677749,1758805854420,-2942.25,0.000265,2]
[387677750,1758805854430,-500.0,0.00026544,2]
[387677751,1758805854440,-151.0,0.00026544,2]